{"text_format":"3","workbook":"xlsx","n_sheets":13,"sheets":["мини-центр","Нейрогимнастика","массаж","Фитбол-гимнастика","Неутомимые-кони","Веселые нотки","Изо-студия \"Улиточка\"","читалочка","Умелые пальчики","Ладушки","анг.яз","Логомассаж","адаптац.группа"],"read":"whole","date_system":"1900"}

{"sheet":"мини-центр","index":0,"n_rows":75,"n_cols":7,"rows_kept":75,"merged":[[8,1,9,1],[8,2,9,2],[8,3,9,3],[8,4,9,4],[47,1,48,1],[47,2,48,2],[60,0,60,6],[61,1,62,1],[61,3,62,3],[65,0,66,0],[65,2,66,2],[65,3,66,3],[72,0,73,0],[72,1,73,1],[72,3,73,3]]}
[null," на 2025-2026 учебный год"]
["Калькуляционный метод формирования цены на платные услуги"]
[]
[]
["РАСЧЕТ"]
["ЗАТРАТ НА ОПЛАТУ ТРУДА ОСНОВНОГО ПЕРСОНАЛА, НЕПОСРЕДСТВЕННО"]
["УЧАСТВУЮЩЕГО В ПРОЦЕССЕ ОКАЗАНИЯ ПЛАТНОЙ УСЛУГИ"]
[]
["Наименование","Средняя  заработная плата, включая начисления на выплаты по оплате труда, рублей в месяц","Месячный фонд рабочего времени, минут","Норма времени на оказание платной услуги, минут","Затраты на оплату труда персонала, рублей"]
["  должности"]
[1,2,3,4,5]
["воспитатель логопед",67528.58,5040,30,{"$f":"B12/C12*D12","v":{"v":401.9558333333333,"d":"401.96"}}]
["….","….","….","….","…."]
["Итого","X","X","X"]
[]
[]
[]
["РАСЧЕТ"]
["ЗАТРАТ НА МАТЕРИАЛЬНЫЕ ЗАПАСЫ, ПОЛНОСТЬЮ ПОТРЕБЛЯЕМЫЕ"]
["В ПРОЦЕССЕ ОКАЗАНИЯ ПЛАТНОЙ УСЛУГИ (РАБОТЫ)"]
[]
["Вид материальных запасов","Наименование товара,  составляющего материальный запас","Единиц измерения","Норма потребления","Объем оказания платных услуг за норму времени","Цена за единицу","Всего затрат материальных запасов"]
[1,2,3,4,5,6,7]
[1,"зеркало","шт",1,{"$f":"D24/30","v":{"v":0.03333333333333333,"d":"0.03"}},83,{"$f":"D24*E24*F24","v":{"v":2.7666666666666666,"d":"2.77"}}]
[{"$f":"A24+1","v":2},"картинный материал","шт",1,{"$f":"D25/30","v":{"v":0.03333333333333333,"d":"0.03"}},138,{"$f":"D25*E25*F25","v":{"v":4.6,"d":"4.60"}}]
[{"$f":"A25+1","v":3},"пособия","шт",1,{"v":0.03333333333333333,"d":"0.03"},180,{"$f":"D26*E26*F26","v":{"v":6,"d":"6.00"}}]
[4,"дидактические игры","шт",1,{"v":0.03333333333333333,"d":"0.03"},339,{"v":11.3,"d":"11.30"}]
[5,"зеркало маленькое","шт",8,{"v":0.26666666666666666,"d":"0.27"},50,{"v":106.66666666666667,"d":"106.67"}]
["Итого","X","X","X",null,"X",{"$f":"SUM(G24:G28)","v":{"v":131.33333333333334,"d":"131.33"}}]
[]
[]
["РАСЧЕТ"]
["СУММЫ НАЧИСЛЕННОЙ АМОРТИЗАЦИИ ОБОРУДОВАНИЯ,"]
["ИСПОЛЬЗУЕМОГО ПРИ ОКАЗАНИИ ПЛАТНОЙ УСЛУГИ (РАБОТЫ)"]
[]
["Наименование оборудования","Балансовая стоимость","Годовая норма износа, процентов","Годовая норма времени работы оборудования, часов","Время работы оборудования в процессе оказания платной услуги, часов","Сумма начисленной амортизации"]
[1,2,3,4,5,6]
["….","….","….","….","….","…."]
["….","….","….","….","….","…."]
["Итого","X","X","X","X"]
[]
[]
["РАСЧЕТ"]
["НАКЛАДНЫХ ЗАТРАТ, НЕОБХОДИМЫХ ДЛЯ ОБЕСПЕЧЕНИЯ"]
["ДЕЯТЕЛЬНОСТИ УЧРЕЖДЕНИЯ ПРИ ОКАЗАНИИ"]
["ПЛАТНОЙ УСЛУГИ (РАБОТЫ)"]
[]
["N  ","Наименование статей затрат","Сумма"]
["п/п"]
[1,"Прогноз затрат на административно-управленческий персонал",225897]
[2,"Прогноз затрат общехозяйственного назначения",1892277.14]
[3,"Прогноз суммы начисленной амортизации имущества общехозяйственного назначения",314048.02]
[4,"Прогноз суммарного фонда оплаты труда основного персонала",21802406.46]
[5,"Коэффициент накладных затрат",{"$f":"(C50+C51+C52)/C53","v":{"v":0.11155750923469389,"d":"0.112"}}]
[6,"Затраты  на основной  персонал, участвующий в предоставлении платной услуги",{"$f":"E12","v":{"v":401.9558333333333,"d":"401.96"}}]
[7,"Итого накладных затрат",{"$f":"C55*C54","v":{"v":44.84119158902241,"d":"44.84"}}]
[]
[]
["РАСЧЕТ"]
["ЦЕНЫ НА ОКАЗАНИЕ ПЛАТНОЙ УСЛУГИ (РАБОТЫ)"]
["Кружок \"коррекция речи\""]
["N","Наименование статей затрат","Единица","Показатель"]
["п/п",null,"измерения"]
[1,"Затраты на оплату труда основного персонала","рублей",{"$f":"E12","v":{"v":401.9558333333333,"d":"401.96"}}]
[2,"Затраты материальных запасов","рублей",{"$f":"G29","v":{"v":131.33333333333334,"d":"131.33"}}]
[3,"Сумма  начисленной  амортизации  оборудования,","рублей",0]
[null,"используемого при оказании платной услуги"]
[4,"Накладные затраты, относимые на платную услугу","рублей",{"$f":"C56","v":{"v":44.84119158902241,"d":"44.84"}}]
[5,"Итого затрат","рублей",{"$f":"D68+D66+D65+D64","v":{"v":578.1303582556891,"d":"578.13"}}]
[6,"Рентабельность","процентов",20]
[7,"Затраты с учетом рентабельности","рублей",{"$f":"D69*1.2","v":{"v":693.7564299068268,"d":"694"}}]
[8,"Плановое количество оказываемых услуг","штук",8]
[9,"Цена платной услуги","рублей за",{"$f":"D72*D71","v":{"v":5550.051439254615,"d":"5550.05"}}]
[null,null," 1 услугу"]
[10,"Цена одного воспитанника в месяц ","рублей",4800]

{"sheet":"Нейрогимнастика","index":1,"n_rows":71,"n_cols":7,"rows_kept":71,"merged":[[5,0,5,4],[6,0,6,4],[8,1,9,1],[8,2,9,2],[8,3,9,3],[8,4,9,4],[43,1,44,1],[43,2,44,2],[56,0,56,6],[57,1,58,1],[57,3,58,3],[61,0,62,0],[61,2,62,2],[61,3,62,3],[68,0,69,0],[68,1,69,1],[68,3,69,3]]}
[null," на 2025-2026 учебный год"]
["Калькуляционный метод формирования цены на платные услуги"]
[]
[]
["РАСЧЕТ"]
["ЗАТРАТ НА ОПЛАТУ ТРУДА ОСНОВНОГО ПЕРСОНАЛА, НЕПОСРЕДСТВЕННО"]
["УЧАСТВУЮЩЕГО В ПРОЦЕССЕ ОКАЗАНИЯ ПЛАТНОЙ УСЛУГИ"]
[]
["Наименование","Средняя  заработная плата, включая начисления на выплаты по оплате труда, рублей в месяц","Месячный фонд рабочего времени, минут","Норма времени на оказание платной услуги, минут","Затраты на оплату труда персонала, рублей"]
["  должности"]
[1,2,3,4,5]
["воспитатель(Данилова)",90920.82,9072,30,{"$f":"B12/C12*D12","v":{"v":300.6640873015873,"d":"300.66"}}]
["Итого","X","X","X"]
[]
[]
[]
["РАСЧЕТ"]
["ЗАТРАТ НА МАТЕРИАЛЬНЫЕ ЗАПАСЫ, ПОЛНОСТЬЮ ПОТРЕБЛЯЕМЫЕ"]
["В ПРОЦЕССЕ ОКАЗАНИЯ ПЛАТНОЙ УСЛУГИ (РАБОТЫ)"]
[]
["Вид материальных запасов","Наименование товара,  составляющего материальный запас","Единиц измерения","Норма потребления","Объем оказания платных услуг за норму времени","Цена за единицу","Всего затрат материальных запасов"]
[1,2,3,4,5,6,7]
[1,"массажный шарик","шт",1,{"$f":"D23/25","v":0.04},55,{"$f":"D23*E23*F23","v":{"v":2.2,"d":"2.20"}}]
[2,"шашки","шт",1,{"$f":"D24/25","v":0.04},500,{"$f":"D24*E24*F24","v":{"v":20,"d":"20.00"}}]
["Итого","X","X","X",null,"X",{"$f":"SUM(G23:G24)","v":{"v":22.2,"d":"22.20"}}]
[]
[]
["РАСЧЕТ"]
["СУММЫ НАЧИСЛЕННОЙ АМОРТИЗАЦИИ ОБОРУДОВАНИЯ,"]
["ИСПОЛЬЗУЕМОГО ПРИ ОКАЗАНИИ ПЛАТНОЙ УСЛУГИ (РАБОТЫ)"]
[]
["Наименование оборудования","Балансовая стоимость","Годовая норма износа, процентов","Годовая норма времени работы оборудования, часов","Время работы оборудования в процессе оказания платной услуги, часов","Сумма начисленной амортизации"]
[1,2,3,4,5,6]
["….","….","….","….","….","…."]
["….","….","….","….","….","…."]
["Итого","X","X","X","X"]
[]
[]
["РАСЧЕТ"]
["НАКЛАДНЫХ ЗАТРАТ, НЕОБХОДИМЫХ ДЛЯ ОБЕСПЕЧЕНИЯ"]
["ДЕЯТЕЛЬНОСТИ УЧРЕЖДЕНИЯ ПРИ ОКАЗАНИИ"]
["ПЛАТНОЙ УСЛУГИ (РАБОТЫ)"]
[]
["N  ","Наименование статей затрат","Сумма"]
["п/п"]
[1,"Прогноз затрат на административно-управленческий персонал",225897]
[2,"Прогноз затрат общехозяйственного назначения",1892277.14]
[3,"Прогноз суммы начисленной амортизации имущества общехозяйственного назначения",314048.02]
[4,"Прогноз суммарного фонда оплаты труда основного персонала",21802406.46]
[5,"Коэффициент накладных затрат",{"$f":"(C46+C47+C48)/C49","v":{"v":0.11155750923469389,"d":"0.112"}}]
[6,"Затраты  на основной  персонал, участвующий в предоставлении платной услуги",{"$f":"E12","v":{"v":300.6640873015873,"d":"300.66"}}]
[7,"Итого накладных затрат",{"$f":"C51*C50","v":{"v":33.54133669568763,"d":"33.54"}}]
[]
[]
["РАСЧЕТ"]
["ЦЕНЫ НА ОКАЗАНИЕ ПЛАТНОЙ УСЛУГИ (РАБОТЫ)"]
["Кружок \"Нейрогимнастика \""]
["N","Наименование статей затрат","Единица","Показатель"]
["п/п",null,"измерения"]
[1,"Затраты на оплату труда основного персонала","рублей",{"$f":"E12","v":{"v":300.6640873015873,"d":"300.66"}}]
[2,"Затраты материальных запасов","рублей",{"$f":"G25","v":22.2}]
[3,"Сумма  начисленной  амортизации  оборудования,","рублей",0]
[null,"используемого при оказании платной услуги"]
[4,"Накладные затраты, относимые на платную услугу","рублей",{"$f":"C52","v":{"v":33.54133669568763,"d":"33.54"}}]
[5,"Итого затрат","рублей",{"$f":"D64+D62+D61+D60","v":{"v":356.40542399727497,"d":"356.41"}}]
[6,"Рентабельность","процентов",20]
[7,"Затраты с учетом рентабельности","рублей",{"$f":"(D65*0.2)+D65","v":{"v":427.68650879673,"d":"428"}}]
[8,"Плановое количество оказываемых услуг","штук",8]
[9,"Цена платной услуги","рублей за",{"$f":"D68*D67","v":{"v":3421.49207037384,"d":"3421.49"}}]
[null,null," 1 услугу"]
[10,"Цена одного воспитанника в месяц ","рублей",1360]

{"sheet":"массаж","index":2,"n_rows":75,"n_cols":7,"rows_kept":75,"merged":[[8,1,9,1],[8,2,9,2],[8,3,9,3],[8,4,9,4],[47,1,48,1],[47,2,48,2],[60,0,60,6],[61,1,62,1],[61,3,62,3],[65,0,66,0],[65,2,66,2],[65,3,66,3],[72,0,73,0],[72,1,73,1],[72,3,73,3]]}
[null," на 2025-2026 учебный год"]
["Калькуляционный метод формирования цены на платные услуги"]
[]
[]
["РАСЧЕТ"]
["ЗАТРАТ НА ОПЛАТУ ТРУДА ОСНОВНОГО ПЕРСОНАЛА, НЕПОСРЕДСТВЕННО"]
["УЧАСТВУЮЩЕГО В ПРОЦЕССЕ ОКАЗАНИЯ ПЛАТНОЙ УСЛУГИ"]
[]
["Наименование","Средняя  заработная плата, включая начисления на выплаты по оплате труда, рублей в месяц","Месячный фонд рабочего времени, минут","Норма времени на оказание платной услуги, минут","Затраты на оплату труда персонала, рублей"]
["  должности"]
[1,2,3,4,5]
["медсестра",51492.05,9702,30,{"$f":"B12/C12*D12","v":{"v":159.2209338280767,"d":"159.22"}}]
["….","….","….","….","…."]
["Итого","X","X","X"]
[]
[]
[]
["РАСЧЕТ"]
["ЗАТРАТ НА МАТЕРИАЛЬНЫЕ ЗАПАСЫ, ПОЛНОСТЬЮ ПОТРЕБЛЯЕМЫЕ"]
["В ПРОЦЕССЕ ОКАЗАНИЯ ПЛАТНОЙ УСЛУГИ (РАБОТЫ)"]
[]
["Вид материальных запасов","Наименование товара,  составляющего материальный запас","Единиц измерения","Норма потребления","Объем оказания платных услуг за норму времени","Цена за единицу","Всего затрат материальных запасов"]
[1,2,3,4,5,6,7]
[1,"крем","шт",0.05,0.04,140,{"$f":"D24*E24*F24","v":0.28}]
[]
[]
[]
[]
["Итого","X","X","X",null,"X",{"$f":"SUM(G24:G28)","v":0.28}]
[]
[]
["РАСЧЕТ"]
["СУММЫ НАЧИСЛЕННОЙ АМОРТИЗАЦИИ ОБОРУДОВАНИЯ,"]
["ИСПОЛЬЗУЕМОГО ПРИ ОКАЗАНИИ ПЛАТНОЙ УСЛУГИ (РАБОТЫ)"]
[]
["Наименование оборудования","Балансовая стоимость","Годовая норма износа, процентов","Годовая норма времени работы оборудования, часов","Время работы оборудования в процессе оказания платной услуги, часов","Сумма начисленной амортизации"]
[1,2,3,4,5,6]
["….","….","….","….","….","…."]
["….","….","….","….","….","…."]
["Итого","X","X","X","X"]
[]
[]
["РАСЧЕТ"]
["НАКЛАДНЫХ ЗАТРАТ, НЕОБХОДИМЫХ ДЛЯ ОБЕСПЕЧЕНИЯ"]
["ДЕЯТЕЛЬНОСТИ УЧРЕЖДЕНИЯ ПРИ ОКАЗАНИИ"]
["ПЛАТНОЙ УСЛУГИ (РАБОТЫ)"]
[]
["N  ","Наименование статей затрат","Сумма"]
["п/п"]
[1,"Прогноз затрат на административно-управленческий персонал",225897]
[2,"Прогноз затрат общехозяйственного назначения",1892277.14]
[3,"Прогноз суммы начисленной амортизации имущества общехозяйственного назначения",314048.02]
[4,"Прогноз суммарного фонда оплаты труда основного персонала",21802406.46]
[5,"Коэффициент накладных затрат",{"$f":"(C50+C51+C52)/C53","v":{"v":0.11155750923469389,"d":"0.112"}}]
[6,"Затраты  на основной  персонал, участвующий в предоставлении платной услуги",{"$f":"E12","v":{"v":159.2209338280767,"d":"159.22"}}]
[7,"Итого накладных затрат",{"$f":"C55*C54","v":{"v":17.76229079588225,"d":"17.76"}}]
[]
[]
["РАСЧЕТ"]
["ЦЕНЫ НА ОКАЗАНИЕ ПЛАТНОЙ УСЛУГИ (РАБОТЫ)"]
["Кружок \"Массаж\""]
["N","Наименование статей затрат","Единица","Показатель"]
["п/п",null,"измерения"]
[1,"Затраты на оплату труда основного персонала","рублей",{"$f":"E12","v":{"v":159.2209338280767,"d":"159.22"}}]
[2,"Затраты материальных запасов","рублей",{"$f":"G29","v":0.28}]
[3,"Сумма  начисленной  амортизации  оборудования,","рублей",0]
[null,"используемого при оказании платной услуги"]
[4,"Накладные затраты, относимые на платную услугу","рублей",{"$f":"C56","v":{"v":17.76229079588225,"d":"17.76"}}]
[5,"Итого затрат","рублей",{"$f":"D68+D66+D65+D64","v":{"v":177.26322462395896,"d":"177.26"}}]
[6,"Рентабельность","процентов",{"$f":"D69*20%","v":35.45264492479179}]
[7,"Затраты с учетом рентабельности","рублей",{"$f":"D69*1.2","v":{"v":212.71586954875076,"d":"213"}}]
[8,"Плановое количество оказываемых услуг","штук",10]
[9,"Цена платной услуги","рублей за",{"$f":"D72*D71","v":{"v":2127.1586954875074,"d":"2127.16"}}]
[null,null," 1 услугу"]
[10,"Цена одного воспитанника в месяц ","рублей",2500]

{"sheet":"Фитбол-гимнастика","index":3,"n_rows":73,"n_cols":7,"rows_kept":73,"merged":[[5,0,5,4],[6,0,6,4],[8,1,9,1],[8,2,9,2],[8,3,9,3],[8,4,9,4],[45,1,46,1],[45,2,46,2],[58,0,58,6],[59,1,60,1],[59,3,60,3],[63,0,64,0],[63,2,64,2],[63,3,64,3],[70,0,71,0],[70,1,71,1],[70,3,71,3]]}
[null," на 2025-2026 учебный год"]
["Калькуляционный метод формирования цены на платные услуги"]
[]
[]
["РАСЧЕТ"]
["ЗАТРАТ НА ОПЛАТУ ТРУДА ОСНОВНОГО ПЕРСОНАЛА, НЕПОСРЕДСТВЕННО"]
["УЧАСТВУЮЩЕГО В ПРОЦЕССЕ ОКАЗАНИЯ ПЛАТНОЙ УСЛУГИ"]
[]
["Наименование","Средняя  заработная плата, включая начисления на выплаты по оплате труда, рублей в месяц","Месячный фонд рабочего времени, минут","Норма времени на оказание платной услуги, минут","Затраты на оплату труда персонала, рублей"]
["  должности"]
[1,2,3,4,5]
["воспитатель (Смолонцева М.И)",62836.21,7560,30,{"$f":"B12/C12*D12","v":{"v":249.3500396825397,"d":"249.35"}}]
["Итого","X","X","X"]
[]
[]
[]
["РАСЧЕТ"]
["ЗАТРАТ НА МАТЕРИАЛЬНЫЕ ЗАПАСЫ, ПОЛНОСТЬЮ ПОТРЕБЛЯЕМЫЕ"]
["В ПРОЦЕССЕ ОКАЗАНИЯ ПЛАТНОЙ УСЛУГИ (РАБОТЫ)"]
[]
["Вид материальных запасов","Наименование товара,  составляющего материальный запас","Единиц измерения","Норма потребления","Объем оказания платных услуг за норму времени","Цена за единицу","Всего затрат материальных запасов"]
[1,2,3,4,5,6,7]
[1,"платочки","шт",1,{"$f":"D23/30","v":{"v":0.03333333333333333,"d":"0.03"}},126,{"$f":"D23*E23*F23","v":4.2}]
[{"$f":"A23+1","v":2},"флажки","шт",1,{"$f":"D24/30","v":{"v":0.03333333333333333,"d":"0.03"}},58,{"$f":"D24*E24*F24","v":{"v":1.9333333333333333,"d":"1.93"}}]
[{"$f":"A24+1","v":3},"мяч фитбольный","шт",1,{"v":0.03333333333333333,"d":"0.03"},210,{"$f":"D25*E25*F25","v":7}]
[4,"обручи","шт",1,{"v":0.03333333333333333,"d":"0.03"},98,{"v":3.2666666666666666,"d":"3.27"}]
["Итого","X","X","X",null,"X",{"$f":"SUM(G23:G26)","v":16.4}]
[]
[]
["РАСЧЕТ"]
["СУММЫ НАЧИСЛЕННОЙ АМОРТИЗАЦИИ ОБОРУДОВАНИЯ,"]
["ИСПОЛЬЗУЕМОГО ПРИ ОКАЗАНИИ ПЛАТНОЙ УСЛУГИ (РАБОТЫ)"]
[]
["Наименование оборудования","Балансовая стоимость","Годовая норма износа, процентов","Годовая норма времени работы оборудования, часов","Время работы оборудования в процессе оказания платной услуги, часов","Сумма начисленной амортизации"]
[1,2,3,4,5,6]
["….","….","….","….","….","…."]
["….","….","….","….","….","…."]
["Итого","X","X","X","X"]
[]
[]
["РАСЧЕТ"]
["НАКЛАДНЫХ ЗАТРАТ, НЕОБХОДИМЫХ ДЛЯ ОБЕСПЕЧЕНИЯ"]
["ДЕЯТЕЛЬНОСТИ УЧРЕЖДЕНИЯ ПРИ ОКАЗАНИИ"]
["ПЛАТНОЙ УСЛУГИ (РАБОТЫ)"]
[]
["N  ","Наименование статей затрат","Сумма"]
["п/п"]
[1,"Прогноз затрат на административно-управленческий персонал",225897]
[2,"Прогноз затрат общехозяйственного назначения",1892277.14]
[3,"Прогноз суммы начисленной амортизации имущества общехозяйственного назначения",314048.02]
[4,"Прогноз суммарного фонда оплаты труда основного персонала",21802406.46]
[5,"Коэффициент накладных затрат",{"$f":"(C48+C49+C50)/C51","v":{"v":0.11155750923469389,"d":"0.112"}}]
[6,"Затраты  на основной  персонал, участвующий в предоставлении платной услуги",{"$f":"E12","v":{"v":249.3500396825397,"d":"249.35"}}]
[7,"Итого накладных затрат",{"$f":"C53*C52","v":{"v":27.816869354556207,"d":"27.82"}}]
[]
[]
["РАСЧЕТ"]
["ЦЕНЫ НА ОКАЗАНИЕ ПЛАТНОЙ УСЛУГИ (РАБОТЫ)"]
["Кружок \"Фитбол-гимнастика\""]
["N","Наименование статей затрат","Единица","Показатель"]
["п/п",null,"измерения"]
[1,"Затраты на оплату труда основного персонала","рублей",{"$f":"E12","v":{"v":249.3500396825397,"d":"249.35"}}]
[2,"Затраты материальных запасов","рублей",{"$f":"G27","v":16.4}]
[3,"Сумма  начисленной  амортизации  оборудования,","рублей",0]
[null,"используемого при оказании платной услуги"]
[4,"Накладные затраты, относимые на платную услугу","рублей",{"$f":"C54","v":{"v":27.816869354556207,"d":"27.82"}}]
[5,"Итого затрат","рублей",{"$f":"D66+D64+D63+D62","v":{"v":293.5669090370959,"d":"293.57"}}]
[6,"Рентабельность","процентов",20]
[7,"Затраты с учетом рентабельности","рублей",{"$f":"(D67*0.2)+D67","v":{"v":352.2802908445151,"d":"352"}}]
[8,"Плановое количество оказываемых услуг","штук",8]
[9,"Цена платной услуги","рублей за",{"v":1920,"d":"1920.00"}]
[null,null," 1 услугу"]
[10,"Цена одного воспитанника в месяц ","рублей",1200]

{"sheet":"Неутомимые-кони","index":4,"n_rows":72,"n_cols":7,"rows_kept":72,"merged":[[5,0,5,4],[6,0,6,3],[8,1,9,1],[8,2,9,2],[8,3,9,3],[8,4,9,4],[44,1,45,1],[44,2,45,2],[57,0,57,6],[58,1,59,1],[58,3,59,3],[62,0,63,0],[62,2,63,2],[62,3,63,3],[69,0,70,0],[69,1,70,1],[69,3,70,3]]}
[null," на 2025-2026 учебный год"]
["Калькуляционный метод формирования цены на платные услуги"]
[]
[]
["РАСЧЕТ"]
["ЗАТРАТ НА ОПЛАТУ ТРУДА ОСНОВНОГО ПЕРСОНАЛА, НЕПОСРЕДСТВЕННО"]
["УЧАСТВУЮЩЕГО В ПРОЦЕССЕ ОКАЗАНИЯ ПЛАТНОЙ УСЛУГИ"]
[]
["Наименование","Средняя  заработная плата, включая начисления на выплаты по оплате труда, рублей в месяц","Месячный фонд рабочего времени, минут","Норма времени на оказание платной услуги, минут","Затраты на оплату труда персонала, рублей"]
["  должности"]
[1,2,3,4,5]
["воспитатель (Пархутова С.А.)",67839.48,6300,30,{"$f":"B12/C12*D12","v":{"v":323.0451428571428,"d":"323.05"}}]
["Итого","X","X","X"]
[]
[]
[]
["РАСЧЕТ"]
["ЗАТРАТ НА МАТЕРИАЛЬНЫЕ ЗАПАСЫ, ПОЛНОСТЬЮ ПОТРЕБЛЯЕМЫЕ"]
["В ПРОЦЕССЕ ОКАЗАНИЯ ПЛАТНОЙ УСЛУГИ (РАБОТЫ)"]
[]
["Вид материальных запасов","Наименование товара,  составляющего материальный запас","Единиц измерения","Норма потребления","Объем оказания платных услуг за норму времени","Цена за единицу","Всего затрат материальных запасов"]
[1,2,3,4,5,6,7]
[1,"шахматы","шт.",1,{"$f":"D23/30","v":{"v":0.03333333333333333,"d":"0.03"}},500,{"$f":"D23*E23*F23","v":{"v":16.666666666666668,"d":"16.67"}}]
[{"$f":"A23+1","v":2},"тетрадь","шт.",1,{"$f":"D24/30","v":{"v":0.03333333333333333,"d":"0.03"}},10,{"$f":"D24*E24*F24","v":{"v":0.3333333333333333,"d":"0.33"}}]
[{"$f":"A24+1","v":3},"карандаши  простые","шт.",1,{"v":0.03333333333333333,"d":"0.03"},10,{"v":0.3333333333333333,"d":"0.33"}]
["Итого","X","X","X",null,"X",{"$f":"SUM(G23:G25)","v":{"v":17.333333333333332,"d":"17.33"}}]
[]
[]
["РАСЧЕТ"]
["СУММЫ НАЧИСЛЕННОЙ АМОРТИЗАЦИИ ОБОРУДОВАНИЯ,"]
["ИСПОЛЬЗУЕМОГО ПРИ ОКАЗАНИИ ПЛАТНОЙ УСЛУГИ (РАБОТЫ)"]
[]
["Наименование оборудования","Балансовая стоимость","Годовая норма износа, процентов","Годовая норма времени работы оборудования, часов","Время работы оборудования в процессе оказания платной услуги, часов","Сумма начисленной амортизации"]
[1,2,3,4,5,6]
["….","….","….","….","….","…."]
["….","….","….","….","….","…."]
["Итого","X","X","X","X"]
[]
[]
["РАСЧЕТ"]
["НАКЛАДНЫХ ЗАТРАТ, НЕОБХОДИМЫХ ДЛЯ ОБЕСПЕЧЕНИЯ"]
["ДЕЯТЕЛЬНОСТИ УЧРЕЖДЕНИЯ ПРИ ОКАЗАНИИ"]
["ПЛАТНОЙ УСЛУГИ (РАБОТЫ)"]
[]
["N  ","Наименование статей затрат","Сумма"]
["п/п"]
[1,"Прогноз затрат на административно-управленческий персонал",225897]
[2,"Прогноз затрат общехозяйственного назначения",1892277.14]
[3,"Прогноз суммы начисленной амортизации имущества общехозяйственного назначения",314048.02]
[4,"Прогноз суммарного фонда оплаты труда основного персонала",21802406.46]
[5,"Коэффициент накладных затрат",{"$f":"(C47+C48+C49)/C50","v":{"v":0.11155750923469389,"d":"0.112"}}]
[6,"Затраты  на основной  персонал, участвующий в предоставлении платной услуги",323.05]
[7,"Итого накладных затрат",{"$f":"C52*C51","v":{"v":36.038653358267865,"d":"36.04"}}]
[]
[]
["РАСЧЕТ"]
["ЦЕНЫ НА ОКАЗАНИЕ ПЛАТНОЙ УСЛУГИ (РАБОТЫ)"]
["Кружок \"Неутомимые кони\""]
["N","Наименование статей затрат","Единица","Показатель"]
["п/п",null,"измерения"]
[1,"Затраты на оплату труда основного персонала","рублей",{"$f":"E12","v":{"v":323.0451428571428,"d":"323.05"}}]
[2,"Затраты материальных запасов","рублей",{"$f":"G26","v":{"v":17.333333333333332,"d":"17.33"}}]
[3,"Сумма  начисленной  амортизации  оборудования,","рублей",0]
[null,"используемого при оказании платной услуги"]
[4,"Накладные затраты, относимые на платную услугу","рублей",{"$f":"C53","v":{"v":36.038653358267865,"d":"36.04"}}]
[5,"Итого затрат","рублей",{"$f":"D65+D63+D62+D61","v":{"v":376.417129548744,"d":"376.42"}}]
[6,"Рентабельность","процентов",20]
[7,"Затраты с учетом рентабельности","рублей",{"$f":"(D66*0.2)+D66","v":{"v":451.70055545849283,"d":"452"}}]
[8,"Плановое количество оказываемых услуг","штук",8]
[9,"Цена платной услуги","рублей за",{"$f":"D69*D68","v":{"v":3613.6044436679426,"d":"3613.60"}}]
[null,null," 1 услугу"]
[10,"Цена одного воспитанника в месяц ","рублей",1200]

{"sheet":"Веселые нотки","index":5,"n_rows":71,"n_cols":7,"rows_kept":71,"merged":[[5,0,5,3],[6,0,6,3],[8,1,9,1],[8,2,9,2],[8,3,9,3],[8,4,9,4],[43,1,44,1],[43,2,44,2],[56,0,56,6],[57,1,58,1],[57,3,58,3],[61,0,62,0],[61,2,62,2],[61,3,62,3],[68,0,69,0],[68,1,69,1],[68,3,69,3]]}
[null," на 2025-2026 учебный год"]
["Калькуляционный метод формирования цены на платные услуги"]
[]
[]
["РАСЧЕТ"]
["ЗАТРАТ НА ОПЛАТУ ТРУДА ОСНОВНОГО ПЕРСОНАЛА, НЕПОСРЕДСТВЕННО"]
["УЧАСТВУЮЩЕГО В ПРОЦЕССЕ ОКАЗАНИЯ ПЛАТНОЙ УСЛУГИ"]
[]
["Наименование","Средняя  заработная плата, включая начисления на выплаты по оплате труда, рублей в месяц","Месячный фонд рабочего времени, минут","Норма времени на оказание платной услуги, минут","Затраты на оплату труда персонала, рублей"]
["  должности"]
[1,2,3,4,5]
["музыкальный руководитель Макарова Л.С..)",93379.58,9072,30,{"$f":"B12/C12*D12","v":{"v":308.7949074074074,"d":"308.79"}}]
["Итого","X","X","X"]
[]
[]
[]
["РАСЧЕТ"]
["ЗАТРАТ НА МАТЕРИАЛЬНЫЕ ЗАПАСЫ, ПОЛНОСТЬЮ ПОТРЕБЛЯЕМЫЕ"]
["В ПРОЦЕССЕ ОКАЗАНИЯ ПЛАТНОЙ УСЛУГИ (РАБОТЫ)"]
[]
["Вид материальных запасов","Наименование товара,  составляющего материальный запас","Единиц измерения","Норма потребления","Объем оказания платных услуг за норму времени","Цена за единицу","Всего затрат материальных запасов"]
[1,2,3,4,5,6,7]
[1,"флешка","шт",1,{"$f":"D23/30","v":{"v":0.03333333333333333,"d":"0.03"}},520,{"$f":"D23*E23*F23","v":{"v":17.333333333333332,"d":"17.33"}}]
[2,"ноты","шт",1,{"$f":"D24/30","v":{"v":0.03333333333333333,"d":"0.03"}},500,{"$f":"D24*E24*F24","v":{"v":16.666666666666668,"d":"16.67"}}]
["Итого","X","X","X",null,"X",{"$f":"SUM(G23:G24)","v":34}]
[]
[]
["РАСЧЕТ"]
["СУММЫ НАЧИСЛЕННОЙ АМОРТИЗАЦИИ ОБОРУДОВАНИЯ,"]
["ИСПОЛЬЗУЕМОГО ПРИ ОКАЗАНИИ ПЛАТНОЙ УСЛУГИ (РАБОТЫ)"]
[]
["Наименование оборудования","Балансовая стоимость","Годовая норма износа, процентов","Годовая норма времени работы оборудования, часов","Время работы оборудования в процессе оказания платной услуги, часов","Сумма начисленной амортизации"]
[1,2,3,4,5,6]
["….","….","….","….","….","…."]
["….","….","….","….","….","…."]
["Итого","X","X","X","X"]
[]
[]
["РАСЧЕТ"]
["НАКЛАДНЫХ ЗАТРАТ, НЕОБХОДИМЫХ ДЛЯ ОБЕСПЕЧЕНИЯ"]
["ДЕЯТЕЛЬНОСТИ УЧРЕЖДЕНИЯ ПРИ ОКАЗАНИИ"]
["ПЛАТНОЙ УСЛУГИ (РАБОТЫ)"]
[]
["N  ","Наименование статей затрат","Сумма"]
["п/п"]
[1,"Прогноз затрат на административно-управленческий персонал",225897]
[2,"Прогноз затрат общехозяйственного назначения",1892277.14]
[3,"Прогноз суммы начисленной амортизации имущества общехозяйственного назначения",314048.02]
[4,"Прогноз суммарного фонда оплаты труда основного персонала",21802406.46]
[5,"Коэффициент накладных затрат",{"$f":"(C46+C47+C48)/C49","v":{"v":0.11155750923469389,"d":"0.112"}}]
[6,"Затраты  на основной  персонал, участвующий в предоставлении платной услуги",{"$f":"E12","v":{"v":308.7949074074074,"d":"308.79"}}]
[7,"Итого накладных затрат",{"$f":"C51*C50","v":{"v":34.44839073472829,"d":"34.45"}}]
[]
[]
["РАСЧЕТ"]
["ЦЕНЫ НА ОКАЗАНИЕ ПЛАТНОЙ УСЛУГИ (РАБОТЫ)"]
["Кружок \"Веселые нотки\""]
["N","Наименование статей затрат","Единица","Показатель"]
["п/п",null,"измерения"]
[1,"Затраты на оплату труда основного персонала","рублей",{"$f":"E12","v":{"v":308.7949074074074,"d":"308.79"}}]
[2,"Затраты материальных запасов","рублей",{"$f":"G25","v":34}]
[3,"Сумма  начисленной  амортизации  оборудования,","рублей",0]
[null,"используемого при оказании платной услуги"]
[4,"Накладные затраты, относимые на платную услугу","рублей",{"$f":"C52","v":{"v":34.44839073472829,"d":"34.45"}}]
[5,"Итого затрат","рублей",{"$f":"D64+D62+D61+D60","v":{"v":377.2432981421357,"d":"377.24"}}]
[6,"Рентабельность","процентов",20]
[7,"Затраты с учетом рентабельности","рублей",{"$f":"(D65*0.2)+D65","v":{"v":452.69195777056285,"d":"453"}}]
[8,"Плановое количество оказываемых услуг","штук",8]
[9,"Цена платной услуги","рублей за",{"$f":"D68*D67","v":{"v":3621.535662164503,"d":"3621.54"}}]
[null,null," 1 услугу"]
[10,"Цена одного воспитанника в месяц ","рублей",1200]

{"sheet":"Изо-студия \"Улиточка\"","index":6,"n_rows":71,"n_cols":7,"rows_kept":71,"merged":[[5,0,5,4],[6,0,6,4],[8,1,9,1],[8,2,9,2],[8,3,9,3],[8,4,9,4],[43,1,44,1],[43,2,44,2],[56,0,56,6],[57,1,58,1],[57,3,58,3],[61,0,62,0],[61,2,62,2],[61,3,62,3],[68,0,69,0],[68,1,69,1],[68,3,69,3]]}
[null," на 2025-2026 учебный год"]
["Калькуляционный метод формирования цены на платные услуги"]
[]
[]
["РАСЧЕТ"]
["ЗАТРАТ НА ОПЛАТУ ТРУДА ОСНОВНОГО ПЕРСОНАЛА, НЕПОСРЕДСТВЕННО"]
["УЧАСТВУЮЩЕГО В ПРОЦЕССЕ ОКАЗАНИЯ ПЛАТНОЙ УСЛУГИ"]
[]
["Наименование","Средняя  заработная плата, включая начисления на выплаты по оплате труда, рублей в месяц","Месячный фонд рабочего времени, минут","Норма времени на оказание платной услуги, минут","Затраты на оплату труда персонала, рублей"]
["  должности"]
[1,2,3,4,5]
["воспитатель (Гильмуллина Г.Ф.)",64693.61,9072,30,{"$f":"B12/C12*D12","v":{"v":213.9338955026455,"d":"213.93"}}]
["Итого","X","X","X"]
[]
[]
[]
["РАСЧЕТ"]
["ЗАТРАТ НА МАТЕРИАЛЬНЫЕ ЗАПАСЫ, ПОЛНОСТЬЮ ПОТРЕБЛЯЕМЫЕ"]
["В ПРОЦЕССЕ ОКАЗАНИЯ ПЛАТНОЙ УСЛУГИ (РАБОТЫ)"]
[]
["Вид материальных запасов","Наименование товара,  составляющего материальный запас","Единиц измерения","Норма потребления","Объем оказания платных услуг за норму времени","Цена за единицу","Всего затрат материальных запасов"]
[1,2,3,4,5,6,7]
[1,"тетради","шт",1,{"$f":"D23/25","v":0.04},10,{"$f":"D23*E23*F23","v":{"v":0.4,"d":"0.40"}}]
[2,"карандаши простые","шт",1,{"$f":"D24/25","v":0.04},10,{"$f":"D24*E24*F24","v":{"v":0.4,"d":"0.40"}}]
["Итого","X","X","X",null,"X",{"$f":"SUM(G23:G24)","v":{"v":0.8,"d":"0.80"}}]
[]
[]
["РАСЧЕТ"]
["СУММЫ НАЧИСЛЕННОЙ АМОРТИЗАЦИИ ОБОРУДОВАНИЯ,"]
["ИСПОЛЬЗУЕМОГО ПРИ ОКАЗАНИИ ПЛАТНОЙ УСЛУГИ (РАБОТЫ)"]
[]
["Наименование оборудования","Балансовая стоимость","Годовая норма износа, процентов","Годовая норма времени работы оборудования, часов","Время работы оборудования в процессе оказания платной услуги, часов","Сумма начисленной амортизации"]
[1,2,3,4,5,6]
["….","….","….","….","….","…."]
["….","….","….","….","….","…."]
["Итого","X","X","X","X"]
[]
[]
["РАСЧЕТ"]
["НАКЛАДНЫХ ЗАТРАТ, НЕОБХОДИМЫХ ДЛЯ ОБЕСПЕЧЕНИЯ"]
["ДЕЯТЕЛЬНОСТИ УЧРЕЖДЕНИЯ ПРИ ОКАЗАНИИ"]
["ПЛАТНОЙ УСЛУГИ (РАБОТЫ)"]
[]
["N  ","Наименование статей затрат","Сумма"]
["п/п"]
[1,"Прогноз затрат на административно-управленческий персонал",225897]
[2,"Прогноз затрат общехозяйственного назначения",1892277.14]
[3,"Прогноз суммы начисленной амортизации имущества общехозяйственного назначения",314048.02]
[4,"Прогноз суммарного фонда оплаты труда основного персонала",21802406.46]
[5,"Коэффициент накладных затрат",{"$f":"(C46+C47+C48)/C49","v":{"v":0.11155750923469389,"d":"0.112"}}]
[6,"Затраты  на основной  персонал, участвующий в предоставлении платной услуги",{"$f":"E12","v":{"v":213.9338955026455,"d":"213.93"}}]
[7,"Итого накладных затрат",{"$f":"C51*C50","v":{"v":23.865932523150413,"d":"23.87"}}]
[]
[]
["РАСЧЕТ"]
["ЦЕНЫ НА ОКАЗАНИЕ ПЛАТНОЙ УСЛУГИ (РАБОТЫ)"]
["Кружок \"Изо-студия \"Улиточка\"\""]
["N","Наименование статей затрат","Единица","Показатель"]
["п/п",null,"измерения"]
[1,"Затраты на оплату труда основного персонала","рублей",{"$f":"E12","v":{"v":213.9338955026455,"d":"213.93"}}]
[2,"Затраты материальных запасов","рублей",{"$f":"G25","v":0.8}]
[3,"Сумма  начисленной  амортизации  оборудования,","рублей",0]
[null,"используемого при оказании платной услуги"]
[4,"Накладные затраты, относимые на платную услугу","рублей",{"$f":"C52","v":{"v":23.865932523150413,"d":"23.87"}}]
[5,"Итого затрат","рублей",{"$f":"D64+D62+D61+D60","v":{"v":238.59982802579592,"d":"238.60"}}]
[6,"Рентабельность","процентов",20]
[7,"Затраты с учетом рентабельности","рублей",{"$f":"(D65*0.2)+D65","v":{"v":286.31979363095513,"d":"286"}}]
[8,"Плановое количество оказываемых услуг","штук",4]
[9,"Цена платной услуги","рублей за",{"$f":"D68*D67","v":{"v":1145.2791745238205,"d":"1145.28"}}]
[null,null," 1 услугу"]
[10,"Цена одного воспитанника в месяц ","рублей",1000]

{"sheet":"читалочка","index":7,"n_rows":71,"n_cols":7,"rows_kept":71,"merged":[[5,0,5,4],[6,0,6,4],[8,1,9,1],[8,2,9,2],[8,3,9,3],[8,4,9,4],[43,1,44,1],[43,2,44,2],[56,0,56,6],[57,1,58,1],[57,3,58,3],[61,0,62,0],[61,2,62,2],[61,3,62,3],[68,0,69,0],[68,1,69,1],[68,3,69,3]]}
[null," на 2025-2026 учебный год"]
["Калькуляционный метод формирования цены на платные услуги"]
[]
[]
["РАСЧЕТ"]
["ЗАТРАТ НА ОПЛАТУ ТРУДА ОСНОВНОГО ПЕРСОНАЛА, НЕПОСРЕДСТВЕННО"]
["УЧАСТВУЮЩЕГО В ПРОЦЕССЕ ОКАЗАНИЯ ПЛАТНОЙ УСЛУГИ"]
[]
["Наименование","Средняя  заработная плата, включая начисления на выплаты по оплате труда, рублей в месяц","Месячный фонд рабочего времени, минут","Норма времени на оказание платной услуги, минут","Затраты на оплату труда персонала, рублей"]
["  должности"]
[1,2,3,4,5]
["воспитатель (Закирова И.А..)",64906.36,5040,30,{"$f":"B12/C12*D12","v":{"v":386.34738095238095,"d":"386.35"}}]
["Итого","X","X","X"]
[]
[]
[]
["РАСЧЕТ"]
["ЗАТРАТ НА МАТЕРИАЛЬНЫЕ ЗАПАСЫ, ПОЛНОСТЬЮ ПОТРЕБЛЯЕМЫЕ"]
["В ПРОЦЕССЕ ОКАЗАНИЯ ПЛАТНОЙ УСЛУГИ (РАБОТЫ)"]
[]
["Вид материальных запасов","Наименование товара,  составляющего материальный запас","Единиц измерения","Норма потребления","Объем оказания платных услуг за норму времени","Цена за единицу","Всего затрат материальных запасов"]
[1,2,3,4,5,6,7]
[1,"тетради","шт",1,{"$f":"D23/25","v":0.04},10,{"$f":"D23*E23*F23","v":{"v":0.4,"d":"0.40"}}]
[2,"карандаши простые","шт",1,{"$f":"D24/25","v":0.04},10,{"$f":"D24*E24*F24","v":{"v":0.4,"d":"0.40"}}]
["Итого","X","X","X",null,"X",{"$f":"SUM(G23:G24)","v":{"v":0.8,"d":"0.80"}}]
[]
[]
["РАСЧЕТ"]
["СУММЫ НАЧИСЛЕННОЙ АМОРТИЗАЦИИ ОБОРУДОВАНИЯ,"]
["ИСПОЛЬЗУЕМОГО ПРИ ОКАЗАНИИ ПЛАТНОЙ УСЛУГИ (РАБОТЫ)"]
[]
["Наименование оборудования","Балансовая стоимость","Годовая норма износа, процентов","Годовая норма времени работы оборудования, часов","Время работы оборудования в процессе оказания платной услуги, часов","Сумма начисленной амортизации"]
[1,2,3,4,5,6]
["….","….","….","….","….","…."]
["….","….","….","….","….","…."]
["Итого","X","X","X","X"]
[]
[]
["РАСЧЕТ"]
["НАКЛАДНЫХ ЗАТРАТ, НЕОБХОДИМЫХ ДЛЯ ОБЕСПЕЧЕНИЯ"]
["ДЕЯТЕЛЬНОСТИ УЧРЕЖДЕНИЯ ПРИ ОКАЗАНИИ"]
["ПЛАТНОЙ УСЛУГИ (РАБОТЫ)"]
[]
["N  ","Наименование статей затрат","Сумма"]
["п/п"]
[1,"Прогноз затрат на административно-управленческий персонал",225897]
[2,"Прогноз затрат общехозяйственного назначения",1892277.14]
[3,"Прогноз суммы начисленной амортизации имущества общехозяйственного назначения",314048.02]
[4,"Прогноз суммарного фонда оплаты труда основного персонала",21802406.46]
[5,"Коэффициент накладных затрат",{"$f":"(C46+C47+C48)/C49","v":{"v":0.11155750923469389,"d":"0.112"}}]
[6,"Затраты  на основной  персонал, участвующий в предоставлении платной услуги",{"$f":"E12","v":{"v":386.34738095238095,"d":"386.35"}}]
[7,"Итого накладных затрат",{"$f":"C51*C50","v":{"v":43.09995151839504,"d":"43.10"}}]
[]
[]
["РАСЧЕТ"]
["ЦЕНЫ НА ОКАЗАНИЕ ПЛАТНОЙ УСЛУГИ (РАБОТЫ)"]
["Кружок \"Грамотейка\""]
["N","Наименование статей затрат","Единица","Показатель"]
["п/п",null,"измерения"]
[1,"Затраты на оплату труда основного персонала","рублей",{"$f":"E12","v":{"v":386.34738095238095,"d":"386.35"}}]
[2,"Затраты материальных запасов","рублей",{"$f":"G25","v":0.8}]
[3,"Сумма  начисленной  амортизации  оборудования,","рублей",0]
[null,"используемого при оказании платной услуги"]
[4,"Накладные затраты, относимые на платную услугу","рублей",{"$f":"C52","v":{"v":43.09995151839504,"d":"43.10"}}]
[5,"Итого затрат","рублей",{"$f":"D64+D62+D61+D60","v":{"v":430.247332470776,"d":"430.25"}}]
[6,"Рентабельность","процентов",20]
[7,"Затраты с учетом рентабельности","рублей",{"$f":"(D65*0.2)+D65","v":{"v":516.2967989649312,"d":"516"}}]
[8,"Плановое количество оказываемых услуг","штук",4]
[9,"Цена платной услуги","рублей за",{"$f":"D68*D67","v":{"v":2065.187195859725,"d":"2065.19"}}]
[null,null," 1 услугу"]
[10,"Цена одного воспитанника в месяц ","рублей",1360]

{"sheet":"Умелые пальчики","index":8,"n_rows":71,"n_cols":7,"rows_kept":71,"merged":[[5,0,5,4],[6,0,6,4],[8,1,9,1],[8,2,9,2],[8,3,9,3],[8,4,9,4],[43,1,44,1],[43,2,44,2],[56,0,56,6],[57,1,58,1],[57,3,58,3],[61,0,62,0],[61,2,62,2],[61,3,62,3],[68,0,69,0],[68,1,69,1],[68,3,69,3]]}
[null," на 2025-2026 учебный год"]
["Калькуляционный метод формирования цены на платные услуги"]
[]
[]
["РАСЧЕТ"]
["ЗАТРАТ НА ОПЛАТУ ТРУДА ОСНОВНОГО ПЕРСОНАЛА, НЕПОСРЕДСТВЕННО"]
["УЧАСТВУЮЩЕГО В ПРОЦЕССЕ ОКАЗАНИЯ ПЛАТНОЙ УСЛУГИ"]
[]
["Наименование","Средняя  заработная плата, включая начисления на выплаты по оплате труда, рублей в месяц","Месячный фонд рабочего времени, минут","Норма времени на оказание платной услуги, минут","Затраты на оплату труда персонала, рублей"]
["  должности"]
[1,2,3,4,5]
["воспитатель (Понькина О.В)",66621.04,6300,30,{"$f":"B12/C12*D12","v":{"v":317.2430476190476,"d":"317.24"}}]
["Итого","X","X","X"]
[]
[]
[]
["РАСЧЕТ"]
["ЗАТРАТ НА МАТЕРИАЛЬНЫЕ ЗАПАСЫ, ПОЛНОСТЬЮ ПОТРЕБЛЯЕМЫЕ"]
["В ПРОЦЕССЕ ОКАЗАНИЯ ПЛАТНОЙ УСЛУГИ (РАБОТЫ)"]
[]
["Вид материальных запасов","Наименование товара,  составляющего материальный запас","Единиц измерения","Норма потребления","Объем оказания платных услуг за норму времени","Цена за единицу","Всего затрат материальных запасов"]
[1,2,3,4,5,6,7]
[1,"тетради","шт",1,{"$f":"D23/25","v":0.04},10,{"$f":"D23*E23*F23","v":{"v":0.4,"d":"0.40"}}]
[2,"карандаши простые","шт",1,{"$f":"D24/25","v":0.04},10,{"$f":"D24*E24*F24","v":{"v":0.4,"d":"0.40"}}]
["Итого","X","X","X",null,"X",{"$f":"SUM(G23:G24)","v":{"v":0.8,"d":"0.80"}}]
[]
[]
["РАСЧЕТ"]
["СУММЫ НАЧИСЛЕННОЙ АМОРТИЗАЦИИ ОБОРУДОВАНИЯ,"]
["ИСПОЛЬЗУЕМОГО ПРИ ОКАЗАНИИ ПЛАТНОЙ УСЛУГИ (РАБОТЫ)"]
[]
["Наименование оборудования","Балансовая стоимость","Годовая норма износа, процентов","Годовая норма времени работы оборудования, часов","Время работы оборудования в процессе оказания платной услуги, часов","Сумма начисленной амортизации"]
[1,2,3,4,5,6]
["….","….","….","….","….","…."]
["….","….","….","….","….","…."]
["Итого","X","X","X","X"]
[]
[]
["РАСЧЕТ"]
["НАКЛАДНЫХ ЗАТРАТ, НЕОБХОДИМЫХ ДЛЯ ОБЕСПЕЧЕНИЯ"]
["ДЕЯТЕЛЬНОСТИ УЧРЕЖДЕНИЯ ПРИ ОКАЗАНИИ"]
["ПЛАТНОЙ УСЛУГИ (РАБОТЫ)"]
[]
["N  ","Наименование статей затрат","Сумма"]
["п/п"]
[1,"Прогноз затрат на административно-управленческий персонал",225897]
[2,"Прогноз затрат общехозяйственного назначения",1892277.14]
[3,"Прогноз суммы начисленной амортизации имущества общехозяйственного назначения",314048.02]
[4,"Прогноз суммарного фонда оплаты труда основного персонала",21802406.46]
[5,"Коэффициент накладных затрат",{"$f":"(C46+C47+C48)/C49","v":{"v":0.11155750923469389,"d":"0.112"}}]
[6,"Затраты  на основной  персонал, участвующий в предоставлении платной услуги",{"$f":"E12","v":{"v":317.2430476190476,"d":"317.24"}}]
[7,"Итого накладных затрат",{"$f":"C51*C50","v":{"v":35.39084421440434,"d":"35.39"}}]
[]
[]
["РАСЧЕТ"]
["ЦЕНЫ НА ОКАЗАНИЕ ПЛАТНОЙ УСЛУГИ (РАБОТЫ)"]
["Кружок \"Подготовка к школе\""]
["N","Наименование статей затрат","Единица","Показатель"]
["п/п",null,"измерения"]
[1,"Затраты на оплату труда основного персонала","рублей",{"$f":"E12","v":{"v":317.2430476190476,"d":"317.24"}}]
[2,"Затраты материальных запасов","рублей",{"$f":"G25","v":0.8}]
[3,"Сумма  начисленной  амортизации  оборудования,","рублей",0]
[null,"используемого при оказании платной услуги"]
[4,"Накладные затраты, относимые на платную услугу","рублей",{"$f":"C52","v":{"v":35.39084421440434,"d":"35.39"}}]
[5,"Итого затрат","рублей",{"$f":"D64+D62+D61+D60","v":{"v":353.433891833452,"d":"353.43"}}]
[6,"Рентабельность","процентов",20]
[7,"Затраты с учетом рентабельности","рублей",{"$f":"(D65*0.2)+D65","v":{"v":424.1206702001424,"d":"424"}}]
[8,"Плановое количество оказываемых услуг","штук",4]
[9,"Цена платной услуги","рублей за",{"$f":"D68*D67","v":{"v":1696.4826808005696,"d":"1696.48"}}]
[null,null," 1 услугу"]
[10,"Цена одного воспитанника в месяц ","рублей",600]

{"sheet":"Ладушки","index":9,"n_rows":71,"n_cols":7,"rows_kept":71,"merged":[[5,0,5,4],[6,0,6,4],[8,1,9,1],[8,2,9,2],[8,3,9,3],[8,4,9,4],[43,1,44,1],[43,2,44,2],[56,0,56,6],[57,1,58,1],[57,3,58,3],[61,0,62,0],[61,2,62,2],[61,3,62,3],[68,0,69,0],[68,1,69,1],[68,3,69,3]]}
[null," на 2025-2026 учебный год"]
["Калькуляционный метод формирования цены на платные услуги"]
[]
[]
["РАСЧЕТ"]
["ЗАТРАТ НА ОПЛАТУ ТРУДА ОСНОВНОГО ПЕРСОНАЛА, НЕПОСРЕДСТВЕННО"]
["УЧАСТВУЮЩЕГО В ПРОЦЕССЕ ОКАЗАНИЯ ПЛАТНОЙ УСЛУГИ"]
[]
["Наименование","Средняя  заработная плата, включая начисления на выплаты по оплате труда, рублей в месяц","Месячный фонд рабочего времени, минут","Норма времени на оказание платной услуги, минут","Затраты на оплату труда персонала, рублей"]
["  должности"]
[1,2,3,4,5]
["воспитатель Данилова)",90920.82,9072,30,{"$f":"B12/C12*D12","v":{"v":300.6640873015873,"d":"300.66"}}]
["Итого","X","X","X"]
[]
[]
[]
["РАСЧЕТ"]
["ЗАТРАТ НА МАТЕРИАЛЬНЫЕ ЗАПАСЫ, ПОЛНОСТЬЮ ПОТРЕБЛЯЕМЫЕ"]
["В ПРОЦЕССЕ ОКАЗАНИЯ ПЛАТНОЙ УСЛУГИ (РАБОТЫ)"]
[]
["Вид материальных запасов","Наименование товара,  составляющего материальный запас","Единиц измерения","Норма потребления","Объем оказания платных услуг за норму времени","Цена за единицу","Всего затрат материальных запасов"]
[1,2,3,4,5,6,7]
[1,"тетради","шт",1,{"$f":"D23/25","v":0.04},50,{"$f":"D23*E23*F23","v":{"v":2,"d":"2.00"}}]
[2,"карандаши простые","шт",1,{"$f":"D24/25","v":0.04},10,{"$f":"D24*E24*F24","v":{"v":0.4,"d":"0.40"}}]
["Итого","X","X","X",null,"X",{"$f":"SUM(G23:G24)","v":{"v":2.4,"d":"2.40"}}]
[]
[]
["РАСЧЕТ"]
["СУММЫ НАЧИСЛЕННОЙ АМОРТИЗАЦИИ ОБОРУДОВАНИЯ,"]
["ИСПОЛЬЗУЕМОГО ПРИ ОКАЗАНИИ ПЛАТНОЙ УСЛУГИ (РАБОТЫ)"]
[]
["Наименование оборудования","Балансовая стоимость","Годовая норма износа, процентов","Годовая норма времени работы оборудования, часов","Время работы оборудования в процессе оказания платной услуги, часов","Сумма начисленной амортизации"]
[1,2,3,4,5,6]
["….","….","….","….","….","…."]
["….","….","….","….","….","…."]
["Итого","X","X","X","X"]
[]
[]
["РАСЧЕТ"]
["НАКЛАДНЫХ ЗАТРАТ, НЕОБХОДИМЫХ ДЛЯ ОБЕСПЕЧЕНИЯ"]
["ДЕЯТЕЛЬНОСТИ УЧРЕЖДЕНИЯ ПРИ ОКАЗАНИИ"]
["ПЛАТНОЙ УСЛУГИ (РАБОТЫ)"]
[]
["N  ","Наименование статей затрат","Сумма"]
["п/п"]
[1,"Прогноз затрат на административно-управленческий персонал",225897]
[2,"Прогноз затрат общехозяйственного назначения",1892277.14]
[3,"Прогноз суммы начисленной амортизации имущества общехозяйственного назначения",314048.02]
[4,"Прогноз суммарного фонда оплаты труда основного персонала",21802406.46]
[5,"Коэффициент накладных затрат",{"$f":"(C46+C47+C48)/C49","v":{"v":0.11155750923469389,"d":"0.112"}}]
[6,"Затраты  на основной  персонал, участвующий в предоставлении платной услуги",{"$f":"E12","v":{"v":300.6640873015873,"d":"300.66"}}]
[7,"Итого накладных затрат",{"$f":"C51*C50","v":{"v":33.54133669568763,"d":"33.54"}}]
[]
[]
["РАСЧЕТ"]
["ЦЕНЫ НА ОКАЗАНИЕ ПЛАТНОЙ УСЛУГИ (РАБОТЫ)"]
["Кружок \"Веселые мячики \"Су-джок\"\""]
["N","Наименование статей затрат","Единица","Показатель"]
["п/п",null,"измерения"]
[1,"Затраты на оплату труда основного персонала","рублей",{"$f":"E12","v":{"v":300.6640873015873,"d":"300.66"}}]
[2,"Затраты материальных запасов","рублей",{"$f":"G25","v":2.4}]
[3,"Сумма  начисленной  амортизации  оборудования,","рублей",0]
[null,"используемого при оказании платной услуги"]
[4,"Накладные затраты, относимые на платную услугу","рублей",{"$f":"C52","v":{"v":33.54133669568763,"d":"33.54"}}]
[5,"Итого затрат","рублей",{"$f":"D64+D62+D61+D60","v":{"v":336.60542399727495,"d":"336.61"}}]
[6,"Рентабельность","процентов",20]
[7,"Затраты с учетом рентабельности","рублей",{"$f":"(D65*0.2)+D65","v":{"v":403.92650879672993,"d":"404"}}]
[8,"Плановое количество оказываемых услуг","штук",8]
[9,"Цена платной услуги","рублей за",{"$f":"D68*D67","v":{"v":3231.4120703738395,"d":"3231.41"}}]
[null,null," 1 услугу"]
[10,"Цена одного воспитанника в месяц ","рублей",1200]

{"sheet":"анг.яз","index":10,"n_rows":71,"n_cols":7,"rows_kept":71,"merged":[[5,0,5,4],[6,0,6,4],[8,1,9,1],[8,2,9,2],[8,3,9,3],[8,4,9,4],[43,1,44,1],[43,2,44,2],[56,0,56,6],[57,1,58,1],[57,3,58,3],[61,0,62,0],[61,2,62,2],[61,3,62,3],[68,0,69,0],[68,1,69,1],[68,3,69,3]]}
[null," на 2025-2026 учебный год"]
["Калькуляционный метод формирования цены на платные услуги"]
[]
[]
["РАСЧЕТ"]
["ЗАТРАТ НА ОПЛАТУ ТРУДА ОСНОВНОГО ПЕРСОНАЛА, НЕПОСРЕДСТВЕННО"]
["УЧАСТВУЮЩЕГО В ПРОЦЕССЕ ОКАЗАНИЯ ПЛАТНОЙ УСЛУГИ"]
[]
["Наименование","Средняя  заработная плата, включая начисления на выплаты по оплате труда, рублей в месяц","Месячный фонд рабочего времени, минут","Норма времени на оказание платной услуги, минут","Затраты на оплату труда персонала, рублей"]
["  должности"]
[1,2,3,4,5]
["воспитатель ",30000,6300,30,{"$f":"B12/C12*D12","v":{"v":142.85714285714286,"d":"142.86"}}]
["Итого","X","X","X"]
[]
[]
[]
["РАСЧЕТ"]
["ЗАТРАТ НА МАТЕРИАЛЬНЫЕ ЗАПАСЫ, ПОЛНОСТЬЮ ПОТРЕБЛЯЕМЫЕ"]
["В ПРОЦЕССЕ ОКАЗАНИЯ ПЛАТНОЙ УСЛУГИ (РАБОТЫ)"]
[]
["Вид материальных запасов","Наименование товара,  составляющего материальный запас","Единиц измерения","Норма потребления","Объем оказания платных услуг за норму времени","Цена за единицу","Всего затрат материальных запасов"]
[1,2,3,4,5,6,7]
[1,"тетради","шт",1,{"$f":"D23/25","v":0.04},50,{"$f":"D23*E23*F23","v":{"v":2,"d":"2.00"}}]
[2,"карандаши простые","шт",1,{"$f":"D24/25","v":0.04},10,{"$f":"D24*E24*F24","v":{"v":0.4,"d":"0.40"}}]
["Итого","X","X","X",null,"X",{"$f":"SUM(G23:G24)","v":{"v":2.4,"d":"2.40"}}]
[]
[]
["РАСЧЕТ"]
["СУММЫ НАЧИСЛЕННОЙ АМОРТИЗАЦИИ ОБОРУДОВАНИЯ,"]
["ИСПОЛЬЗУЕМОГО ПРИ ОКАЗАНИИ ПЛАТНОЙ УСЛУГИ (РАБОТЫ)"]
[]
["Наименование оборудования","Балансовая стоимость","Годовая норма износа, процентов","Годовая норма времени работы оборудования, часов","Время работы оборудования в процессе оказания платной услуги, часов","Сумма начисленной амортизации"]
[1,2,3,4,5,6]
["….","….","….","….","….","…."]
["….","….","….","….","….","…."]
["Итого","X","X","X","X"]
[]
[]
["РАСЧЕТ"]
["НАКЛАДНЫХ ЗАТРАТ, НЕОБХОДИМЫХ ДЛЯ ОБЕСПЕЧЕНИЯ"]
["ДЕЯТЕЛЬНОСТИ УЧРЕЖДЕНИЯ ПРИ ОКАЗАНИИ"]
["ПЛАТНОЙ УСЛУГИ (РАБОТЫ)"]
[]
["N  ","Наименование статей затрат","Сумма"]
["п/п"]
[1,"Прогноз затрат на административно-управленческий персонал",1517667.39]
[2,"Прогноз затрат общехозяйственного назначения",2225836.68]
[3,"Прогноз суммы начисленной амортизации имущества общехозяйственного назначения",453440.52]
[4,"Прогноз суммарного фонда оплаты труда основного персонала",14073196.25]
[5,"Коэффициент накладных затрат",{"$f":"(C46+C47+C48)/C49","v":{"v":0.2982225583616089,"d":"0.298"}}]
[6,"Затраты  на основной  персонал, участвующий в предоставлении платной услуги",{"$f":"E12","v":{"v":142.85714285714286,"d":"142.86"}}]
[7,"Итого накладных затрат",{"$f":"C51*C50","v":{"v":42.603222623086985,"d":"42.60"}}]
[]
[]
["РАСЧЕТ"]
["ЦЕНЫ НА ОКАЗАНИЕ ПЛАТНОЙ УСЛУГИ (РАБОТЫ)"]
["Кружок \"Оригами\""]
["N","Наименование статей затрат","Единица","Показатель"]
["п/п",null,"измерения"]
[1,"Затраты на оплату труда основного персонала","рублей",{"$f":"E12","v":{"v":142.85714285714286,"d":"142.86"}}]
[2,"Затраты материальных запасов","рублей",{"$f":"G25","v":2.4}]
[3,"Сумма  начисленной  амортизации  оборудования,","рублей",0]
[null,"используемого при оказании платной услуги"]
[4,"Накладные затраты, относимые на платную услугу","рублей",{"$f":"C52","v":{"v":42.603222623086985,"d":"42.60"}}]
[5,"Итого затрат","рублей",{"$f":"D64+D62+D61+D60","v":{"v":187.86036548022986,"d":"187.86"}}]
[6,"Рентабельность","процентов",20]
[7,"Затраты с учетом рентабельности","рублей",{"$f":"(D65*0.2)+D65","v":{"v":225.43243857627584,"d":"225"}}]
[8,"Плановое количество оказываемых услуг","штук",8]
[9,"Цена платной услуги","рублей за",{"$f":"D68*D67","v":{"v":1803.4595086102067,"d":"1803.46"}}]
[null,null," 1 услугу"]
[10,"Цена одного воспитанника в месяц ","рублей",1360]

{"sheet":"Логомассаж","index":11,"n_rows":71,"n_cols":7,"rows_kept":71,"merged":[[5,0,5,4],[6,0,6,4],[8,1,9,1],[8,2,9,2],[8,3,9,3],[8,4,9,4],[43,1,44,1],[43,2,44,2],[56,0,56,6],[57,1,58,1],[57,3,58,3],[61,0,62,0],[61,2,62,2],[61,3,62,3],[68,0,69,0],[68,1,69,1],[68,3,69,3]]}
[null," на 2025-2026 учебный год"]
["Калькуляционный метод формирования цены на платные услуги"]
[]
[]
["РАСЧЕТ"]
["ЗАТРАТ НА ОПЛАТУ ТРУДА ОСНОВНОГО ПЕРСОНАЛА, НЕПОСРЕДСТВЕННО"]
["УЧАСТВУЮЩЕГО В ПРОЦЕССЕ ОКАЗАНИЯ ПЛАТНОЙ УСЛУГИ"]
[]
["Наименование","Средняя  заработная плата, включая начисления на выплаты по оплате труда, рублей в месяц","Месячный фонд рабочего времени, минут","Норма времени на оказание платной услуги, минут","Затраты на оплату труда персонала, рублей"]
["  должности"]
[1,2,3,4,5]
["воспитатель (Валиуллина.)",63967.44,5040,30,{"$f":"B12/C12*D12","v":{"v":380.75857142857143,"d":"380.76"}}]
["Итого","X","X","X"]
[]
[]
[]
["РАСЧЕТ"]
["ЗАТРАТ НА МАТЕРИАЛЬНЫЕ ЗАПАСЫ, ПОЛНОСТЬЮ ПОТРЕБЛЯЕМЫЕ"]
["В ПРОЦЕССЕ ОКАЗАНИЯ ПЛАТНОЙ УСЛУГИ (РАБОТЫ)"]
[]
["Вид материальных запасов","Наименование товара,  составляющего материальный запас","Единиц измерения","Норма потребления","Объем оказания платных услуг за норму времени","Цена за единицу","Всего затрат материальных запасов"]
[1,2,3,4,5,6,7]
[1,"тетради","шт",1,{"$f":"D23/25","v":0.04},10,{"$f":"D23*E23*F23","v":{"v":0.4,"d":"0.40"}}]
[2,"карандаши простые","шт",1,{"$f":"D24/25","v":0.04},10,{"$f":"D24*E24*F24","v":{"v":0.4,"d":"0.40"}}]
["Итого","X","X","X",null,"X",{"$f":"SUM(G23:G24)","v":{"v":0.8,"d":"0.80"}}]
[]
[]
["РАСЧЕТ"]
["СУММЫ НАЧИСЛЕННОЙ АМОРТИЗАЦИИ ОБОРУДОВАНИЯ,"]
["ИСПОЛЬЗУЕМОГО ПРИ ОКАЗАНИИ ПЛАТНОЙ УСЛУГИ (РАБОТЫ)"]
[]
["Наименование оборудования","Балансовая стоимость","Годовая норма износа, процентов","Годовая норма времени работы оборудования, часов","Время работы оборудования в процессе оказания платной услуги, часов","Сумма начисленной амортизации"]
[1,2,3,4,5,6]
["….","….","….","….","….","…."]
["….","….","….","….","….","…."]
["Итого","X","X","X","X"]
[]
[]
["РАСЧЕТ"]
["НАКЛАДНЫХ ЗАТРАТ, НЕОБХОДИМЫХ ДЛЯ ОБЕСПЕЧЕНИЯ"]
["ДЕЯТЕЛЬНОСТИ УЧРЕЖДЕНИЯ ПРИ ОКАЗАНИИ"]
["ПЛАТНОЙ УСЛУГИ (РАБОТЫ)"]
[]
["N  ","Наименование статей затрат","Сумма"]
["п/п"]
[1,"Прогноз затрат на административно-управленческий персонал",225897]
[2,"Прогноз затрат общехозяйственного назначения",1892277.14]
[3,"Прогноз суммы начисленной амортизации имущества общехозяйственного назначения",314048.02]
[4,"Прогноз суммарного фонда оплаты труда основного персонала",21802406.46]
[5,"Коэффициент накладных затрат",{"$f":"(C46+C47+C48)/C49","v":{"v":0.11155750923469389,"d":"0.112"}}]
[6,"Затраты  на основной  персонал, участвующий в предоставлении платной услуги",{"$f":"E12","v":{"v":380.75857142857143,"d":"380.76"}}]
[7,"Итого накладных затрат",{"$f":"C51*C50","v":{"v":42.47647784833171,"d":"42.48"}}]
[]
[]
["РАСЧЕТ"]
["ЦЕНЫ НА ОКАЗАНИЕ ПЛАТНОЙ УСЛУГИ (РАБОТЫ)"]
["Оздоровительный курс  \"Логомассаж\""]
["N","Наименование статей затрат","Единица","Показатель"]
["п/п",null,"измерения"]
[1,"Затраты на оплату труда основного персонала","рублей",{"$f":"E12","v":{"v":380.75857142857143,"d":"380.76"}}]
[2,"Затраты материальных запасов","рублей",{"$f":"G25","v":0.8}]
[3,"Сумма  начисленной  амортизации  оборудования,","рублей",0]
[null,"используемого при оказании платной услуги"]
[4,"Накладные затраты, относимые на платную услугу","рублей",{"$f":"C52","v":{"v":42.47647784833171,"d":"42.48"}}]
[5,"Итого затрат","рублей",{"$f":"D64+D62+D61+D60","v":{"v":424.0350492769031,"d":"424.04"}}]
[6,"Рентабельность","процентов",20]
[7,"Затраты с учетом рентабельности","рублей",{"$f":"(D65*0.2)+D65","v":{"v":508.84205913228374,"d":"509"}}]
[8,"Плановое количество оказываемых услуг","штук",10]
[9,"Цена платной услуги","рублей за",{"$f":"D68*D67","v":{"v":5088.420591322837,"d":"5088.42"}}]
[null,null," 1 услугу"]
[10,"Цена одного воспитанника в месяц ","рублей",5000]

{"sheet":"адаптац.группа","index":12,"n_rows":71,"n_cols":7,"rows_kept":71,"merged":[[5,0,5,4],[6,0,6,4],[8,1,9,1],[8,2,9,2],[8,3,9,3],[8,4,9,4],[43,1,44,1],[43,2,44,2],[56,0,56,6],[57,1,58,1],[57,3,58,3],[61,0,62,0],[61,2,62,2],[61,3,62,3],[68,0,69,0],[68,1,69,1],[68,3,69,3]]}
[null," на 2025-2026 учебный год"]
["Калькуляционный метод формирования цены на платные услуги"]
[]
[]
["РАСЧЕТ"]
["ЗАТРАТ НА ОПЛАТУ ТРУДА ОСНОВНОГО ПЕРСОНАЛА, НЕПОСРЕДСТВЕННО"]
["УЧАСТВУЮЩЕГО В ПРОЦЕССЕ ОКАЗАНИЯ ПЛАТНОЙ УСЛУГИ"]
[]
["Наименование","Средняя  заработная плата, включая начисления на выплаты по оплате труда, рублей в месяц","Месячный фонд рабочего времени, минут","Норма времени на оказание платной услуги, минут","Затраты на оплату труда персонала, рублей"]
["  должности"]
[1,2,3,4,5]
["воспитатель ",63896.62,9072,30,{"$f":"B12/C12*D12","v":{"v":211.29834656084657,"d":"211.30"}}]
["Итого","X","X","X"]
[]
[]
[]
["РАСЧЕТ"]
["ЗАТРАТ НА МАТЕРИАЛЬНЫЕ ЗАПАСЫ, ПОЛНОСТЬЮ ПОТРЕБЛЯЕМЫЕ"]
["В ПРОЦЕССЕ ОКАЗАНИЯ ПЛАТНОЙ УСЛУГИ (РАБОТЫ)"]
[]
["Вид материальных запасов","Наименование товара,  составляющего материальный запас","Единиц измерения","Норма потребления","Объем оказания платных услуг за норму времени","Цена за единицу","Всего затрат материальных запасов"]
[1,2,3,4,5,6,7]
[1,"тетради","шт",1,{"$f":"D23/25","v":0.04},0,{"$f":"D23*E23*F23","v":{"v":0,"d":"0.00"}}]
[2,"карандаши простые","шт",1,{"$f":"D24/25","v":0.04},0,{"$f":"D24*E24*F24","v":{"v":0,"d":"0.00"}}]
["Итого","X","X","X",null,"X",{"$f":"SUM(G23:G24)","v":{"v":0,"d":"0.00"}}]
[]
[]
["РАСЧЕТ"]
["СУММЫ НАЧИСЛЕННОЙ АМОРТИЗАЦИИ ОБОРУДОВАНИЯ,"]
["ИСПОЛЬЗУЕМОГО ПРИ ОКАЗАНИИ ПЛАТНОЙ УСЛУГИ (РАБОТЫ)"]
[]
["Наименование оборудования","Балансовая стоимость","Годовая норма износа, процентов","Годовая норма времени работы оборудования, часов","Время работы оборудования в процессе оказания платной услуги, часов","Сумма начисленной амортизации"]
[1,2,3,4,5,6]
["….","….","….","….","….","…."]
["….","….","….","….","….","…."]
["Итого","X","X","X","X"]
[]
[]
["РАСЧЕТ"]
["НАКЛАДНЫХ ЗАТРАТ, НЕОБХОДИМЫХ ДЛЯ ОБЕСПЕЧЕНИЯ"]
["ДЕЯТЕЛЬНОСТИ УЧРЕЖДЕНИЯ ПРИ ОКАЗАНИИ"]
["ПЛАТНОЙ УСЛУГИ (РАБОТЫ)"]
[]
["N  ","Наименование статей затрат","Сумма"]
["п/п"]
[1,"Прогноз затрат на административно-управленческий персонал",225897]
[2,"Прогноз затрат общехозяйственного назначения",1892277.14]
[3,"Прогноз суммы начисленной амортизации имущества общехозяйственного назначения",314048.02]
[4,"Прогноз суммарного фонда оплаты труда основного персонала",21802406.46]
[5,"Коэффициент накладных затрат",{"$f":"(C46+C47+C48)/C49","v":{"v":0.11155750923469389,"d":"0.112"}}]
[6,"Затраты  на основной  персонал, участвующий в предоставлении платной услуги",{"$f":"E12","v":{"v":211.29834656084657,"d":"211.30"}}]
[7,"Итого накладных затрат",{"$f":"C51*C50","v":{"v":23.57191724773719,"d":"23.57"}}]
[]
[]
["РАСЧЕТ"]
["ЦЕНЫ НА ОКАЗАНИЕ ПЛАТНОЙ УСЛУГИ (РАБОТЫ)"]
["Кружок \"Веселые мячики \"Су-джок\"\""]
["N","Наименование статей затрат","Единица","Показатель"]
["п/п",null,"измерения"]
[1,"Затраты на оплату труда основного персонала","рублей",{"$f":"E12","v":{"v":211.29834656084657,"d":"211.30"}}]
[2,"Затраты материальных запасов","рублей",{"$f":"G25","v":0}]
[3,"Сумма  начисленной  амортизации  оборудования,","рублей",0]
[null,"используемого при оказании платной услуги"]
[4,"Накладные затраты, относимые на платную услугу","рублей",{"$f":"C52","v":{"v":23.57191724773719,"d":"23.57"}}]
[5,"Итого затрат","рублей",{"$f":"D64+D62+D61+D60","v":{"v":234.87026380858376,"d":"234.87"}}]
[6,"Рентабельность","процентов",20]
[7,"Затраты с учетом рентабельности","рублей",{"$f":"(D65*0.2)+D65","v":{"v":281.8443165703005,"d":"282"}}]
[8,"Плановое количество оказываемых услуг","штук",4]
[9,"Цена платной услуги","рублей за",{"$f":"D68*D67","v":{"v":1127.377266281202,"d":"1127.38"}}]
[null,null," 1 услугу"]
[10,"Цена одного воспитанника в месяц ","рублей",1500]